Workbook

Sheet informacje ogólne
A1: Tabela nr 1 - Informacje ogólne do oceny ryzyka w Gminie Brodnica
A3: L.p. | B3: Nazwa jednostki | C3: NIP | D3: REGON | E3: PKD | F3: Rodzaj prowadzonej działalności (opisowo) | G3: Liczba pracowników | H3: Liczba uczniów/ wychowanków/ pensjonariuszy | I3: Odległość lokalizacji od najbliższego zbiornika wodnego | J3: Czy od 1997 r. wystąpiło w jednostce ryzyko powodzi? | K3: Planowane imprezy w ciągu roku (nie biletowane i nie podlegające ubezpieczeniu obowiązkowemu OC)
A4: 1 | B4: Urząd Gminy | C4: 874-11-54-226 | D4: 000534233 | G4: 35 | J4: nie
A5: 2 | B5: Gminna Biblioteka Publiczna w Szczuce | C5: 874-16-93-035 | D5: 340180817 | F5: Instytucja kultury - biblioteka | G5: 4 | J5: nie | K5: brak
A6: 3 | B6: Gminny Ośrodek Pomocy Społecznej | C6: 874-16-28-575 | D6: 53423300028 | F6: pomoc społeczna | G6: 11 | J6: nie
A7: 4 | B7: Szkoła Podstawowa im. Janusza Korczaka w Szabdzie | C7: 874-14-32-062 | D7: 001211302 | E7: 8520Z | F7: placówka oświatowo – wychowawcza | G7: 23 | H7: 194 | J7: nie | K7: 1
A8: 5 | B8: Szkoła Podstawowa im. Ziemi Michałowskiej w Gortatowie | C8: 874-14-36-781 | D8: 001211294 | E8: 8010B | F8: działalność budżetowa | G8: 24 | H8: 170 | I8: 5 km | J8: nie | K8: brak
A9: 6 | B9: Szkoła Podstawowa w Gorczenicy | C9: 874-14-32-263 | D9: 001211288 | E9: 8520Z | F9: oświata - szkolnictwo | G9: 19 | H9: 102 | I9: 3 km | J9: nie
A10: 7 | B10: Gimnazjum w Szczuce | C10: 874-15-71-160 | D10: 871252885 | E10: 8531A | F10: oświata - szkolnictwo | G10: 23 | H10: 160 | I10: 3 km | J10: nie | K10: brak

Sheet budynki
B1: Tabela nr 2 - Wykaz budynków i budowli w Gminie Brodnica
A4: lp. | B4: nazwa budynku/ budowli | C4: przeznaczenie budynku/ budowli | D4: czy budynek jest użytkowany? (TAK/NIE) | E4: rok budowy | F4: wartość księgowa brutto | G4: wartość odtworzeniowa | H4: zabezpieczenia (znane zabiezpieczenia p-poż i przeciw kradzieżowe) (2) | I4: lokalizacja (adres) | J4: Rodzaj materiałów budowlanych, z jakich wykonano budynek | M4: czy na poddaszu są składkowane materiały palne? | N4: opis stanu technicznego budynku wg poniższych elementów budynku
J5: mury | K5: stropy | L5: dach (konstrukcja i pokrycie) | N5: konstukcja i pokrycie dachu | O5: intalacja elekryczna | P5: sieć wodno-kanalizacyjna oraz cenralnego ogrzewania | Q5: stolarka okienna i drzwiowa | R5: instalacja gazowa | S5: instalacja wentylacyjna i kominowa
A6: 1. Urząd Gminy
A7: 1 | B7: Budynek mieszkalny-wynajmowany | C7: mieszkalny | D7: tak | E7: 1910 | F7: 60012.42 | H7: drzwi drewniane | I7: Karbowo ul. Małgorzatka 8
A8: 2 | B8: Budynek mieszkalny - 2 lokale wynajmowane | C8: mieszkalny | D8: tak | E8: 1949 | F8: 63655.3 | H8: drzwi drewniane | I8: Karbowo ul. Żmijewska 54
A9: 3 | B9: Budynek gospodarczy przy agronomówce | C9: gospadarczy | D9: tak | E9: 1960 | F9: 2111.6 | H9: drzwi drewniane | I9: Gorczenica
A10: 4 | B10: Garaż-szkółka | C10: garaż | D10: nie | E10: 1960 | F10: 4281.32 | H10: drzwi drewniane | I10: Karbowo
A11: 5 | B11: Remiza OSP | C11: remiza | D11: tak | E11: 1960 | F11: 22319.78 | H11: drzwi drewniane , zamek patentowy | I11: Kominy
A12: 6 | B12: Remiza OSP | C12: remiza | D12: tak | E12: 1960 | F12: 31044.25 | H12: drzwi drewniane, zamek patentowy | I12: Szczuka
A13: 7 | B13: Remiza OSP | C13: remiza | D13: tak | E13: 1977 | F13: 31066.81 | H13: drzwi antywłamaniowe | I13: Gorczenica
A14: 8 | B14: Budynek mieszkalny(oddział przedszkolny) wynajmowane | C14: mieszkalny | D14: tak | F14: 30430.8 | H14: drzwi drewniane, zamek zwykły | I14: Gorczenica 24
A15: 9 | B15: Budynek przedszkolny z gospodarczym (1/2) | C15: mieszkalno-użytkowy | D15: tak | F15: 10624.2 | H15: drzwi drewniane , zamek zwykły | I15: Mszano
A16: 10 | B16: Budynek gospodarczy | C16: gospodarczy | D16: tak | E16: 1979 | F16: 3021.4 | H16: drzwi metalowe | I16: Gorczenica
A17: 11 | B17: Budynek mieszkalny-wynajmowany | C17: mieszkalny | D17: tak | E17: 1950 | F17: 49611.67 | H17: drzwi drewniane, zamek zwykły | I17: Gorczenica 52
A18: 12 | B18: Budynek mieszkalny -wynajmowany | C18: mieszkalno-użytkowy | D18: tak | E18: 1950 | F18: 33768.65 | H18: 2 drzwi, jedne metalowe, drugie drewniane | I18: Kominy 1
A19: 13 | B19: Garaż 2 segmentowy( po SKR) | C19: garaż | D19: nie | E19: 1960/1970 | F19: 1555 | H19: wrota drewniane | I19: Gorczenica
A20: 14 | B20: Garaż 5 segmentowy( po SKR) | C20: garaż | D20: nie | E20: 1960/1970 | F20: 4612 | H20: wrota drewniane | I20: Gorczenica
A21: 15 | B21: Garaż 8 segmentowy (po SKR) | C21: garaż | D21: nie | E21: 1960/1970 | F21: 5483 | H21: wrota drewniane | I21: Gorczenica
A22: 16 | B22: Garaz 11 segmentowy | C22: garaz | D22: nie | E22: 1960/1970 | F22: 9380 | H22: wrota drewniane | I22: Gorczenica
A23: 17 | B23: Warsztat ( po SKR) | C23: budynek administracyjny | D23: nie | E23: 1960/1970 | F23: 10775 | H23: drzwi drewniane | I23: Gorczenica
A24: 18 | B24: Magazyn paliw (po SKR) | D24: nie | E24: 1960/1970 | F24: 813 | I24: Gorczenica
A25: 19 | B25: Garaz na maszyny (po SKr) | C25: garaz | D25: nie | E25: 1960/1970 | F25: 6739 | H25: wrota drewniane | I25: Gorczenica
A26: 20 | B26: Budynek administracyjny (po SKR) | D26: nie | E26: 1960/1970 | F26: 7194 | H26: drzwi PCV | I26: Gorczenica
A27: 21 | B27: Budynek mieszkalny, 1 lokal wynajety | C27: mieszkalny | D27: tak | E27: 1928 | F27: 27673.22 | H27: budynek drewniany | I27: Szabda
A28: 22 | B28: Budynek -świetlica | C28: świetlica | D28: tak | E28: 1977 | F28: 226072.34 | H28: drzwi antywłamaniowe z zabezpieczeniami | I28: Szabda
A29: 23 | B29: Budynek -świetlica | C29: świetlica | D29: tak | E29: 1928 | F29: 22777.7 | H29: 1 drzwi drewniane, 1 drzwi PCV, zamki patentowe | I29: Mszano
A30: 24 | B30: Budynek-świetlica | C30: świetlica | D30: tak | E30: 1977 | F30: 52430.95 | H30: 1 drzwi PCV, zamki patentowe | I30: Bartniki
A31: 25 | B31: Budynek - świetlica | C31: świetlica | D31: tak | E31: 1989 | F31: 214642.06 | H31: 1 drzwi metalowe, 2 drzwi PCV | I31: Szczuka
A32: 26 | B32: Budynek -świetlica | C32: świetlica | D32: tak | E32: 1992 | F32: 26750.18 | H32: 2 drzwi PCV, kraty na 2 oknach | I32: Podgórz
A33: 27 | B33: Budynek -świetlica | C33: świetlica | D33: tak | E33: 1992 | F33: 29089.61 | H33: 1 drzwi drewniane, 2 zamki w tym 1 patentowy | I33: Kozi Róg
A34: 28 | B34: Budynek-świetlica | C34: świetlica | D34: tak | E34: 1993 | F34: 51200 | H34: 1 drzwi drewniane | I34: Niewierz
A35: 29 | B35: Budynek-świetlica | C35: świetlica | D35: tak | E35: 1994 | F35: 88662.4 | H35: 1 drzwi PCV, zamek patentowy | I35: Gortatowo
A36: 30 | B36: Budynek-świetlica | C36: świetlica | D36: tak | E36: 1997 | F36: 497187.58 | H36: 3 drzwi wejściowe drewniane, po jednym zamku patentowym w kazdych drzwiach, kraty na oknach jednego pomieszczenia, urządzenie alarmowe-sygnalizacja dźwiekowa-powiadomienie całodobowe | I36: Karbowo
A37: 31 | B37: Budynek mieszkalny | C37: mieszkalny | D37: tak | F37: 196233.84 | H37: 3 drzwi drewniane, 1 drzwi PCV | I37: Moczadła
A38: 32 | B38: Budynek mieszkalny | C38: mieszkalny | D38: tak | F38: 84924.61 | H38: 2 drzwi drewniane | I38: Szymkowo
A39: 33 | B39: Budynek stacji wodociągowej | D39: tak | F39: 52274.46 | I39: Szymkowo
A40: 34 | B40: Budynek stacji wodociągowej | D40: tak | F40: 19924.68 | I40: Mszano
A41: 35 | B41: Budynek po stacji wodociągowej | C41: gospodarczy | D41: tak | F41: 27831.3 | H41: drzwi metalowe zamykane na kłódkę | I41: Karbowo
A42: 36 | B42: Budynek mieszkalny | C42: mieszkalny | D42: tak | F42: 211819.78 | H42: 2 drzwi drewniane | I42: Gorczenica 41
A43: 37 | B43: Budynek gospodarczy-12 segmentowy | C43: gospodarczy | D43: tak | F43: 18938.2 | H43: 12 drzwi metalowych | I43: Gorczenica 41
A44: 38 | B44: Garaż - 5 segmentowy (po SKR) | C44: garaż | D44: tak | F44: 6679.54 | H44: wrota drewniane | I44: Szczuka
A45: 39 | B45: Garaż 4 segmentowy(po SKR) | C45: garaż | D45: tak | F45: 4102.89 | H45: wrota drewniane | I45: Szczuka
A46: 40 | B46: Garaż 6 segmentowy (po SKR) | C46: garaż | D46: tak | F46: 5693.11 | H46: wrota metalowe | I46: Szczuka
A47: 41 | B47: Boisko ORLIK | F47: 1168772.84 | I47: Szczuka
A48: 42 | B48: Boisko Sportowe | F48: 28496.51 | I48: Gorczeniczka
A49: 43 | B49: Boisko sportowe | F49: 58408.8 | I49: Kruszynki
A50: 44 | B50: Boisko sportowe | F50: 577898.11 | I50: Gortatowo
A51: 45 | B51: Boisko sportowe | F51: 274188.48 | I51: Mszano
A52: 46 | B52: Boisko sportowe | F52: 303361.78 | I52: Szabda
A53: 47 | B53: Bieżnia sportowa | F53: 98195.36 | I53: Gorczenica
A54: 48 | B54: Plac zabaw | F54: 49952.82 | I54: Karbowo
A55: RAZEM | B55: RAZEM | F55: =SUM(F7:F54) -> 4812682.35
A56: 4. Szkoła Podstawowa w Szabdzie
A57: 1 | B57: Budynek szkolny | C57: Oświatowo – wychowawczy | D57: TAK | E57: 1961 | G57: 1541000 | H57: urządzenia odgromowe, gaśnice 6-szt. ,3 drzwi do budynku, alarm dźwiękowy obejmuje cały budynek, dozór całodobowy agencji ochrony | I57: Szabda 59, 87-300 Brodnica | J57: cegła | K57: Żeromskiego | L57: beton, papa | M57: NIE | N57: bardzo dobry | O57: bardzo dobry | P57: bardzo dobry | Q57: bardzo dobry | R57: nie dotyczy | S57: bardzo dobry
A58: 2 | B58: Dobudowana nowa część budynku szkolnego | C58: sala gimnastyczna | D58: TAK | E58: 2007 | F58: 1412050.65 | H58: urządzenia odgromowe, gaśnice 3 szt., alarm dźwiękowy obejmuje cały budynek, dozór całodobowy agencji ochrony | I58: Szabda 59, 87-300 Brodnica | J58: pustak | K58: drewniane | L58: drewno, papa | M58: NIE | N58: bardzo dobry | O58: bardzo dobry | P58: bardzo dobry | Q58: bardzo dobry | R58: nie dotyczy | S58: bardzo dobry
B59: RAZEM | F59: =SUM(F57:F58) -> 1412050.65 | G59: =SUM(G57:G58) -> 1541000
A60: 5. Szkoła Podstawowa im. Ziemi Michałowskiej w Gortatowie
A61: 1 | B61: Budynek szkolny w Gortatowie z kotłownią CO | E61: 1969r | F61: 241557.48 | H61: czujki alarmowe w dwóch salach komputerowych, sekretariacie , gabinecie dyrektora, bibliotece monitorowane prze firmę AUTO-TREZOR, | I61: Gortatowo 7, 87-300 Gortatowo
A62: 2 | B62: Budynek szkolny w Cielętch z kotłownia CO | E62: 1899r | F62: 72419.55 | H62: kraty w oknach i drzwiach,alarm w pokoju nauczycielskim, gaśnice-szt 3 GP-4X/Z(ABC) spełniające wymagania PN92-EN-3 | I62: Gortatowo 7, 87-300 Gortatowo
A63: Razem | F63: =SUM(F61:F62) -> 313977.03
A64: 6. Szkoła Podstawowa w Gorczenicy
A65: 1 | B65: budynek szkolny | C65: budynek oświatowy - szkoła | D65: tak | E65: 1964 | G65: 1127000 | H65: gaśnice- 15szt.,4 drzwi do budynku 8 zamków patentowych ; alarm dźwiekowy obejmuje salę komputerową, kancelarię oraz nową część budynku podłączony do telefonu dyrektora szkoły, monitorowanie obiektu przez AUTO TREZOR | I65: Gorczenica 87 87-300 Brodnica | J65: cegła ceramiczna | K65: Gęstożebrowy typ Dz-3 | L65: dwuspadowy pokryty papą | M65: brak poddasza | N65: dobry | O65: dobry | P65: dobry | Q65: dobry | R65: nie dotyczy | S65: dobry
A66: 2 | B66: hala sportowa z łącznikiem | C66: budynek oświatowo - sportowy | D66: tak | E66: 2002 | G66: 3929000 | H66: gaśnice- 15szt., 4 drzwi do budynku 8 zamków patentowych ; alarm dźwiekowy obejmuje salę komputerową, kancelarię oraz nową część budynku podłączony do telefonu dyrektora szkoły, monitorowanie obiektu przez AUTO TREZOR | I66: Gorczenica 87 87-300 Brodnica | J66: bloczki betonowe | K66: cegła żerańska, | L66: konstrukacj drewniana pokryty blachą | M66: brak poddasza | N66: dobry | O66: dobry | P66: dobry | Q66: dobry | R66: nie dotyczy | S66: dobry
A67: 3 | B67: budynek gospodarczy | C67: magazyn | D67: tak | E67: 1982 | G67: 150000 | H67: gaśnice- 2 szt., 4 drzwi do budynku zamki patentowe. | I67: Gorczenica 87 87-300 Brodnica | J67: cegła pełna | L67: konstrukcja drewniana dwuspadowy - papa | M67: brak poddasza | N67: dobry | O67: dobry | P67: dobry | Q67: dobry | R67: nie dotyczy | S67: dobry
A68: Razem | G68: =SUM(G65:G67) -> 5206000
A69: 7. Gimnazjum w Szczuce
A70: 1 | B70: Budynek szkolny | C70: oświatowy | D70: tak | E70: 1952 | G70: 837000 | H70: gaśnice - 10 sztuk, 2 hydranty. 3 drzwi aluminiowe, 6 zamków patentowych, alarm dźwiękowy obejmuje całą szkołę, całodobowy dozór agencji ochrony, monitoring | I70: Szczuka 34 87-300 Brodnica | J70: cegła ceramiczna pełna | K70: typu Kleina | L70: dwuspadowy kryty blachą | M70: nie | N70: bardzo dobry | O70: dobry | P70: bardzo dobry | Q70: dobry | R70: nie dotyczy | S70: dobry
A71: 2 | B71: Budynek gospodarczy | C71: magazyn | D71: nie | E71: 1952 | F71: 4341.5 | H71: budynek do rozbiórki | I71: Szczuka 34 87-300 Brodnica | J71: cegła palona | K71: typu Kleina | L71: drewniany dwuspadowy eternit | M71: brak poddasza | N71: nie dotyczy | O71: dobry | P71: bardzo dobry | Q71: dobry | R71: nie dotyczy | S71: dobry
A72: 3 | B72: Dobudowana nowa część budynku | C72: oświatowy | D72: tak | E72: 2005 | G72: 923000 | H72: gaśnice - 10 sztuk, 2 hydranty. 3 drzwi aluminiowe, 6 zamków patentowych, alarm dźwiękowy obejmuje całą szkołę, całodobowy dozór agencji ochrony, monitoring | I72: Szczuka 34 87-300 Brodnica | J72: żelbetowa wypełniona gazobetonem | K72: płyty monolityczne żerańskie | L72: dwuspadowy pokryty blachodachówką | M72: nie | N72: bardzo dobry | O72: dobry | P72: bardzo dobry | Q72: dobry | R72: nie dotyczy | S72: dobry
A73: 4 | B73: Sala sportowa z zapleczem | C73: oświatowy | D73: tak | E73: 2011 | F73: 4514150.72 | H73: gaśnice - 2 sztuki, 2 hydranty. 2 drzwi aluminiowe,alarm dźwiękowy obejmuje całą szkołę, całodobowy dozór agencji ochrony, monitoring | I73: Szczuka 34 87-300 Brodnica | J73: konstrukcyjne murowane z bloczków M6 na zaprawie cem.wap. | K73: zelbetowe monolityczne typu FILIGRAN | L73: w konstrukcji stalowej w postaci kratownic | M73: nie | N73: bardzo dobry | O73: bardzo dobry | P73: bardzo dobry | Q73: bardzo dobry | R73: nie dotyczy | S73: bardzo dobry
A74: Razem | F74: =SUM(F70:F73) -> 4518492.22 | G74: =SUM(G70:G73) -> 1760000
E76: Łącznie | F76: =SUM(F74,F63,F59,F55) -> 11057202.25 | G76: =SUM(G74,G68,G59) -> 8507000

Sheet elektronika
A1: Tabela nr 3 - Wykaz sprzętu elektronicznego w Gminie Brodnica
A3: Wykaz sprzętu elektronicznego stacjonarnego
A4: Lp. | B4: Nazwa | C4: Rok produkcji | D4: Wartość księgowa brutto
A5: 1. Urząd Gminy
A6: 1 | B6: Zestaw komputerowy -sieć | C6: 2009 | D6: 3006.99
A7: =A6+1 -> 2 | B7: Zestaw komputerowy-sieć | C7: 2009 | D7: 3006.99
A8: 2 | B8: Zestaw komputerowy-sieć | C8: 2009 | D8: 3075.99
A9: 3 | B9: Zestaw komputerowy-sieć | C9: 2009 | D9: 3006.99
A10: 3 | B10: Zestaw komputerowy-sieć | C10: 2009 | D10: 3006.99
A11: 4 | B11: Drukarka Brother | C11: 2009 | D11: 1199
A12: 4 | B12: Kopiarka Ricoh 1027 | C12: 2009 | D12: 3477
A13: 5 | B13: Drukarka | C13: 2010 | D13: 1795
A14: 5 | B14: Zestaw komputerowy-sieć | C14: 2010 | D14: 2424.3
A15: 6 | B15: Kserokopiarka | C15: 2010 | D15: 14490
A16: 6 | B16: Ups APC Smart-UPS 1500 | C16: 2010 | D16: 2947.7
A17: 7 | B17: Zestaw komputerowy-sieć | C17: 2011 | D17: 2094.96
A18: 7 | B18: Drukarka HP | C18: 2012 | D18: 1243.83
A19: 8 | B19: Klimatyzator Whirpol | C19: 2012 | D19: 3013.5
A20: 8 | B20: Serwer Ifostrada Pomorza i Kujaw-sieć | C20: 2012 | D20: 3660
A21: 9 | B21: Drukarka Xerox | C21: 2012 | D21: 2313.99
A22: 9 | B22: Komputer-sieć | C22: 2013 | D22: 2271.47
A23: 10 | B23: Komputer-sieć | C23: 2013 | D23: 2195.16
A24: 10 | B24: Monitor BENQ 24 | C24: 2013 | D24: 947.51
A25: 11 | B25: Serwer DELL POWEREDGE1950 | C25: 2013 | D25: 2294
A26: 11 | B26: Zestaw komputerowy-sieć | C26: 2013 | D26: 3386.5
B27: RAZEM | D27: =SUM(D6:D26) -> 64857.87
A28: 2. Gminna Biblioteka Publiczna
A29: 1 | B29: Komputer HP, monitor | C29: 2013 | D29: 2886.6
B30: RAZEM | D30: =SUM(D29:D29) -> 2886.6
A31: 3. Gminny Ośrodek Pomocy Społecznej
A32: 1 | B32: zestaw komputerowy | C32: 2009 | D32: 2591.23
A33: 2 | B33: komputer ACER | C33: 2009 | D33: 590
A34: 3 | B34: zestaw komputerowy | C34: 2009 | D34: 2899
A35: 4 | B35: monitor LG 19" | C35: 2009 | D35: 569
A36: 5 | B36: zestaw komputerowy | C36: 2010 | D36: 2849.99
A37: 6 | B37: kserokopiarka Toshiba e-Studio 2006 | C37: 2013 | D37: 2001.2
B38: RAZEM | C38: x | D38: =SUM(D32:D37) -> 11500.42
A39: 4. Szkoła Podstawowa w Szabdzie
A40: 1 | B40: Kopiarka DP-8016 PANASONIC | C40: 2009 | D40: 3050
A41: 2 | B41: Zestaw komputerowy Nettop AdaX | C41: 2009 | D41: 1059
A42: 3 | B42: Router (IPS) | C42: 2012 | D42: 792
A43: 4 | B43: Drukarka BROTHER HL3040CN | C43: 2013 | D43: 728
A44: RAZEM | B44: x | D44: =SUM(D40:D43) -> 5629
A45: 5. Szkoła Podstawowa im. Ziemi Michałowskiej w Gortatowie
A46: 1 | B46: RADIOMAGNETOFON GRUNDING | C46: 2009 | D46: 199
A47: 2 | B47: ZESTAW KOMPUTEROWY ( STACJA+MONITOR DELL) | C47: 2010 | D47: 2066
A48: 3 | B48: RADIOMAGNETOFON GRUNDING | C48: 2009 | D48: 240
A49: 4 | B49: RADIOMAGNETOFON PHILIPS | C49: 2009 | D49: 250
A50: 5 | B50: DRUKARKA BRODHER | C50: 2009 | D50: 270
A51: 6 | B51: RADIOMAGNETOFON PHILIPS | C51: 2009 | D51: 240
A52: 7 | B52: DRUKARKA BRODHER | C52: 2010 | D52: 295
A53: 8 | B53: KSEROKOPIARKA RICOH AFICIO MP 201 SPF | C53: 2012 | D53: 4200
A54: 9 | B54: DRUKARKA BRODHER 195C | C54: 2011 | D54: 269
A55: 10 | B55: ZESTAW KOMPUTEROWY Z OPROGRAMOWANIEM | C55: 2010 | D55: 4880.5
A56: 11 | B56: RADIOMAGNETOFON GRUDNIG | C56: 2011 | D56: 500
A57: 12 | B57: RADIMAGNETOFON ELTRA | C57: 2011 | D57: 169
B58: Razem | D58: =SUM(D46:D57) -> 13578.5
A59: 6. Szkoła Podstawowa w Gorczenicy
A60: 1 | B60: 3 Tablice interaktywne z zawieszeniem ściennym | C60: 2010 | D60: 18098.31
B61: RAZEM | D61: =SUM(D60) -> 18098.31
A62: 7. Gimnazjum w Szczuce
A63: 1 | B63: 1 zestaw komputerowy do ksiegowości | C63: 2009 | D63: 1792
A64: 2 | B64: 1 zestaw komputerowy do sekretariatu | C64: 2009 | D64: 1792
A65: RAZEM | D65: =SUM(D63:D64) -> 3584
A67: Wykaz sprzętu elektronicznego przenośnego
A68: Lp. | B68: Nazwa | C68: Rok produkcji | D68: Wartość księgowa brutto
A69: 1. Urząd Gminy
A70: 1 | B70: Zestaw przenośny dla inkasenta | C70: 2009 | D70: 14786.4
A71: 2 | B71: Laptop | C71: 2011 | D71: 1699
A72: 3 | B72: Cyfrowy aparat fotograficzny | C72: 2012 | D72: 579.01
B73: RAZEM | D73: =SUM(D70:D72) -> 17064.41
A74: 3. Gminny Ośrodek Pomocy Społecznej
A75: 1 | B75: Notebook LENOVO | C75: 2010 | D75: 2699
A76: 2 | B76: Projektor BENQMP670 | C76: 2010 | D76: 2490
B77: RAZEM | C77: x | D77: =SUM(D75:D76) -> 5189
A78: 4. Szkoła Podstawowa w Szabdzie
A79: 1 | B79: Wizualizer | C79: 2010 | D79: 2207.96
A80: 2 | B80: 3 tablice interaktywne, SmartBoard 3 projektory, 3 noteb. | C80: 2010 | D80: 35285.85
A81: 3 | B81: Projektor Sanyo PLC-XD2600 | C81: 2012 | D81: 1700
A82: 4 | B82: Notebook Samsung N102S 10.1 | C82: 2012 | D82: 18699.81
A83: 5 | B83: Notebook 15.6 (B0Y40EA) | C83: 2012 | D83: 1889.99
A84: 6 | B84: Tablica interaktywna SamarBoard | C84: 2012 | D84: 5990
A85: 7 | B85: Projektor krutkoogniskowy | C85: 2012 | D85: 4700
A86: 8 | B86: Tablica interaktywna SmartBoard, projektor Vivitek D871 | C86: 2013 | D86: 6620
A87: 9 | B87: NOTEBOOK lENOvO g500c | C87: 2013 | D87: 1671
B88: RAZEM | C88: x | D88: =SUM(D79:D87) -> 78764.61
A89: 5. Szkoła Podstawowa im. Ziemi Michałowskiej w Gortatowie
A90: 1 | B90: LAPTOP ASUS | C90: 2010 | D90: 2000
A91: 2 | B91: NETBOOK SZTUK 5 | C91: 2010 | D91: 12941
A92: 3 | B92: WIZUALIZER SZT 2 | C92: 2010 | D92: 4415.92
A93: 4 | B93: NETBOOK PACKARD BELL | C93: 2011 | D93: 2500
A94: 5 | B94: NETEBOOK DELL 15'6 | C94: 2010 | D94: 2600
A95: 6 | B95: Radioodtwarzacz Bombox szt 3 | C95: 2013 | D95: 998
A96: 7 | B96: projektor BENQ | C96: 2013 | D96: 1320
A97: 8 | B97: TABLICE INTERAKTYWNE WRAZ Z OPROGRAMOWANIEM 5 ZESTAWÓW | C97: 2010 | D97: 17994
A98: 9 | B98: PROJEKTOR O BARDZO KRÓTKIEJ OGNISKOWEJ SZT 5 | C98: 2010 | D98: 15704.9
A99: 10 | B99: MIKROFONY BEZPRZEWODOWE ZESTAW | C99: 2011 | D99: 699
B100: Razem | D100: =SUM(D90:D99) -> 61172.82
A101: 6. Szkoła Podstawowa w Gorczenicy
A102: 1 | B102: Notebook samsung N102S dla ucznia 17 sztuk | C102: 2012 | D102: 18699.81
A103: 2 | B103: Notebook 15,6 dla nauczyciela | C103: 2012 | D103: 1889.99
A104: 3 | B104: 3 projektory | C104: 2010 | D104: 9422.94
A105: 4 | B105: 3 Notebook | C105: 2010 | D105: 7764.6
A106: 5 | B106: Wizualizer | C106: 2010 | D106: 2207.96
A107: 6 | B107: Tablica interaktywna | C107: 2012 | D107: 5990
A108: 7 | B108: Projektor krótkoogniskowy | C108: 2012 | D108: 4700
B109: RAZEM | D109: =SUM(D102:D108) -> 50675.3
A110: 7. Gimnazjum w Szczuce
A111: 1 | B111: Tablica interaktywna Interwrite DualBoard | C111: 2009 | D111: 4331
A112: 2 | B112: komputer przenosny Kalifornia Access | C112: 2009 | D112: 2683.5
A113: 3 | B113: Maszyna myjąca Lavor Free 4 | C113: 2011 | D113: 9840
A114: 4 | B114: Notebook Samsung NP270E5E | C114: 2013 | D114: 1183.5
A115: 5 | B115: Notebook Samsung NP270E5E | C115: 2013 | D115: 1183.5
A116: RAZEM | D116: =SUM(D111:D115) -> 19221.5
A119: Wykaz monitoringu wizyjnego
A120: Lp. | B120: Nazwa | C120: Rok produkcji | D120: Wartość księgowa brutto
A121: 4. Szkoła Podstawowa w Szabdzie
A122: 1 | B122: Kamery monitorujące na zewnątrz szkoły | C122: 2013 | D122: 3083.61
A123: RAZEM | B123: x | D123: =SUM(D122:D122) -> 3083.61
A124: 7. Gimnazjum w Szczuce
A125: 1 | B125: Monitoring częściowo wewnatrz budynku i na zewnatrz | C125: 2010 | D125: 16800
A126: RAZEM | D126: =SUM(D125:D125) -> 16800
B129: Razem sprzęt stacjonarny | D129: =SUM(D27,D30,D38,D44,D58,D61,D65) -> 120134.7
B130: Razem sprzęt przenośny | D130: =SUM(D73,D77,D88,D100,D109,D116) -> 232087.64
B131: Razem monitoring wizyjny | D131: =SUM(D123,D126) -> 19883.61

Sheet auta
A1: Tabela nr 4 - Wykaz pojazdów w Gminie Brodnica
A2: Dane pojazdów
A3: Lp. | B3: Marka | C3: Typ, model | D3: Nr podw./ nadw. | E3: Nr rej. | F3: Rodzaj (osobowy/ ciężarowy/ specjalny) | G3: Poj. | H3: Rok prod. | I3: Data I rejestracji | J3: Ilość miejsc | K3: Ładowność | L3: Dopuszczalna masa całkowita | M3: Przebieg | N3: Zabezpieczenia przeciwkradzieżowe | O3: Suma ubezpieczenia (wartość pojazdu z VAT) | P3: Okres ubezpieczenia OC i NW | R3: Okres ubezpieczenia AC i KR | T3: Zielona Karta (kraj)
P5: Od | Q5: Do | R5: Od | S5: Do
A6: 1. Urząd Gminy
A7: 1 | B7: VOLKSWAGEN | C7: TRANSPORTER T5 | D7: Wv2ZZZ7HZ5X021774 | E7: CBR 02HC | F7: Ciężarowy | G7: 1896 | H7: 2005 | I7: 2006-02-16 | J7: 9 | K7: 860 | L7: 2800 | M7: 109952 | N7: Autoalarm | O7: 32300 | P7: 16-02-2015 | Q7: 15-02-2016 | R7: 16-02-2015 | S7: 15-02-2016
A8: 2 | B8: DAEWOO | C8: Lanos | D8: KLATF48YEWB253414 | E8: CBR 95ML | F8: Osobowy | G8: 1498 | H8: 1998 | I8: 1998-12-01 | J8: 5 | L8: 1595 | P8: OC 30-11-2014 NNW 01.12.2014 | Q8: OC 29-11-2015 NNW 29.11.2015
A9: 3 | B9: Przyczepka | D9: SU9LA075060BR1161 | E9: CBR 89HG | F9: Przyczepka | H9: 2005 | P9: 05-04-2015 | Q9: 04-04-2016
A10: 4 | B10: MTZ | C10: Belarus 952.3 | D10: 09902757; | E10: CBR 68RV | F10: Ciągnik rolniczy | G10: 4750/66 kW | H10: 2008 | I10: 2008-07-21 | J10: 1 | M10: 3439 mt/h | O10: 50400 | P10: 18-07-2014 | Q10: 17-07-2015 | R10: 18-07-2014 | S10: 17-07-2015
A11: 5 | B11: Renault | C11: Master | D11: VF1FDAADS18009324 | E11: CBR 54SH | F11: osobowy | G11: 2.5 | H11: 1998 | I11: 1998-04-28 | P11: 07-04-2015 | Q11: 06-04-2016
A12: 6 | B12: Pronar | C12: T 653/2 | D12: SZB6530XX81X04034 | E12: CBR 31RT | F12: przyczepa ciężar. | H12: 2008 | I12: 2008-12-12 | L12: 1200 | O12: 13000 | P12: 03-12-2014 | Q12: 03-12-2015 | R12: 03-12-2014 | S12: 03-12-2015
A13: 7 | B13: Lublin | C13: II MW | D13: SUL332412W0034216 | E13: CBR94YH | F13: Specjalny | G13: 2200 | H13: 1998 | P13: 18-12-2014 | Q13: 17-12-2015
A14: 8 | B14: HL900 | C14: 40TSA | D14: 20870 | E14: CBR 6S15 | F14: Przyczepka gaśnicza | H14: 1980 | P14: 15.06.2014 | Q14: 14.06.2015
A15: 9 | B15: Fiat | C15: DUCATO | D15: ZFA25000001568619 | E15: CBR6T56 | F15: ciężarowy | G15: 2198 | H15: 2008 | P15: 04.07.2014 | Q15: 03.07.2015
A16: 10 | B16: DAEWOO | C16: Lublin II 3324 | D16: SUL332412W0033705 | E16: CBR 3X73 | F16: osobowy | G16: 2417 | H16: 1998 | P16: 27-05-2014 | Q16: 26-05-2015
A17: 11 | B17: Pronar | C17: T130 | D17: SZB1300XXB1X00191 | E17: CBR1S02 | F17: przyczepa ciężarowa rolnicza | H17: 2011 | P17: 19.02.2015 | Q17: 18.02.2016

Sheet szkody
A1: Tabela nr 5 - Szkodowość w Gminie Brodnica
A3: Informacje o szkodach w ostatnich 3 latach
A4: Rok | B4: Data | C4: Suma wypłaconych odszkodowań | D4: Krótki opis szkód
A5: 2011 | B5: 15.07 | C5: 25366 | D5: pożar w mieszkaniu na parterze w budynku mieszkalnym Gorczenica 41
B6: 19.08 | C6: 585 | D6: OC dróg
B7: 19.08 | C7: 725.86 | D7: OC dróg
B8: 09.11 | C8: 1700 | D8: uszkodzenie projektora
A9: 2012 | B9: brak | C9: 0 | D9: brak
A10: 2013 | B10: 29.08 | C10: 14516.56 | D10: OC komunikacyjne CBR 02HC
A11: Łącznie | C11: =SUM(C5:C10) -> 42893.42

Sheet środki trwałe
A1: Tabela nr 6. Wykaz środków trwałych
B3: INFORMACJA O MAJĄTKU TRWAŁYM
A4: Lp. | B4: Jednostka | C4: Urządzenia i wyposażenie | D4: W tym zbiory bibioteczne
A5: 1 | B5: Urząd Gminy | C5: =429237.66+2495.76+2755.2 -> 434488.62
A6: 2 | B6: Gminna Biblioteka Publiczna | C6: 170281.38 | D6: 137034.78
A7: 3 | B7: Gminny Ośrodek Pomocy Społecznej | C7: 56692.65 | D7: 0
A8: 4 | B8: Szkoła Podstawowa im. Janusza Korczaka w Szabdzie | C8: 246347.3 | D8: 5473.64
A9: 5 | B9: Szkoła Podstawowa im. Ziemi Michałowskiej w Gortatowie | C9: =57447.25+849+1524.75+4489.5 -> 64310.5 | D9: 17802.93
A10: 6 | B10: Szkoła Podstawowa w Gorczenicy | C10: 139658.24 | D10: 14447.83
A11: 7 | B11: Gimnazjum w Szczuce | C11: 195612.56 | D11: 23077.98
B12: Razem | C12: =SUM(C5:C11) -> 1307391.25 | D12: =SUM(D5:D11) -> 197837.16

Sheet lokalizacje
B1: Tabela nr 7
A3: WYKAZ LOKALIZACJI, W KTÓRYCH PROWADZONA JEST DZIAŁALNOŚĆ ORAZ LOKALIZACJI, GDZIE ZNAJDUJE SIĘ MIENIE NALEŻĄCE DO JEDNOSTEK GMINY BRODNICA (nie wykazane w załączniku nr 1 - poniższy wykaz nie musi być pełnym wykazem lokalizacji)
A4: Lp. | B4: Lokalizacja (adres) | C4: Zabezpieczenia (znane zabezpieczenia p-poż i przeciw kradzieżowe)
A5: 2. Gminna Biblioteka Publiczna
A6: 1 | B6: Szczuka 34, 87-300 Brodnica | C6: alarm, 1 gaśnica proszkowa
A7: 2 | B7: Szabda, 87-300 Brodnica | C7: alarm, 1 gaśnica proszkowa
A8: 3. Gminny Ośrodek Pomocy Społecznej
A9: 1 | B9: ul. Piwna 4, 87-300 Brodnica | C9: kraty w oknach, alarm połączony z agencją ochrony, gaśnica proszkowa
A10: 4. Szkoła Podstawowa w Szabdzie
A11: 1. | B11: Mszano 22, 87-300 Brodnica | C11: gaśnica proszkowa abc, 1 szt.
A12: 2. | B12: Karbowo, ul. Klubowa 25 | C12: gaśnica proszkowa abc, 1 szt.
